bitfinex/quotes_ETHUSD_20241119
["timestamp","ask_amount","ask_price","bid_price","bid_amount"]
[1731999851328,3.19356,3131.3,3130.7,3.51315]
[1731999851504,3.19356,3131.3,3130.5,3.19437]
[1731999851505,3.19356,3131.3,3130.8,0.8107]
[1731999851824,3.19338,3131.5,3130.8,0.8107]
[1731999852029,3.19364,3131.3,3130.8,0.8107]
[1731999852192,3.19369,3131.2,3130.8,0.8107]
[1731999852384,0.64965707,3131.6,3130.8,0.8107]
[1731999852385,3.19377,3131.1,3130.8,0.8107]
[1731999852831,3.1939,3131.0,3130.8,0.8107]
[1731999853028,3.19396,3130.9,3130.8,0.8107]
[1731999853270,3.513147,3131.1,3130.8,0.8107]
[1731999853550,3.19388,3131.0,3130.8,0.8107]
[1731999853850,3.19377,3131.1,3130.8,0.8107]
[1731999855213,3.19407,3130.8,3130.7,35.0]
[1731999858437,0.7607,3131.2,3130.5,1.1101]
[1731999858438,3.19427,3130.6,3130.5,1.1101]
[1731999858616,3.19439,3130.5,3130.3,0.8305]
[1731999858839,3.19427,3130.6,3130.4,35.0]
[1731999860320,3.19427,3130.6,3130.5,0.319]
[1731999861846,3.19427,3130.6,3130.4,0.319]
[1731999862064,3.95317,3130.5,3130.4,0.319]
[1731999862813,3.19471,3130.2,3130.0,0.319]
[1731999863420,3.19471,3130.2,3130.1,35.319]
[1731999866248,3.19471,3130.2,3130.1,35.0]
[1731999866453,3.19454,3130.4,3130.1,35.0]
[1731999866753,3.19454,3130.4,3129.9,0.319]
[1731999867141,3.19454,3130.4,3130.0,35.0]
[1731999868130,3.19458,3130.3,3130.0,35.0]
[1731999870548,3.19458,3130.3,3130.1,0.319]
[1731999871117,3.19458,3130.3,3130.1,35.319]
[1731999874246,3.19458,3130.3,3129.9,0.319]
[1731999874759,3.19458,3130.3,3130.0,35.0]
[1731999875114,0.8213,3131.0,3130.1,0.8295]
[1731999875313,0.8213,3131.0,3130.1,1.1485]
[1731999875314,3.1942,3130.7,3130.1,1.1485]
[1731999875556,3.19435,3130.6,3130.1,1.1485]
[1731999877027,3.19441,3130.5,3130.1,1.1485]
[1731999877729,3.513851,3130.5,3130.1,1.1485]
[1731999877946,4.278451,3130.5,3130.1,1.1485]
[1731999878267,3.19448,3130.4,3130.1,36.1485]
[1731999879142,3.513811,3130.5,3130.1,36.1485]
[1731999879561,0.319441,3130.5,3130.1,36.1485]
[1731999879744,3.19452,3130.4,3130.1,36.1485]
[1731999880142,3.19458,3130.3,3130.1,36.1485]
[1731999880557,3.19458,3130.3,3130.1,0.319]
[1731999880786,3.514138,3130.2,3130.1,0.319]
[1731999880946,3.19499,3129.9,3129.8,0.319]
[1731999881767,3.19499,3129.9,3129.4,0.7607]
[1731999881768,3.19517,3129.8,3129.5,0.319]
[1731999882288,3.19523,3129.7,3129.5,0.319]
[1731999882445,3.19529,3129.6,3129.5,0.319]
[1731999882775,3.1955,3129.4,3129.3,0.319]
[1731999883532,3.19591,3129.0,3128.8,0.7817]
[1731999883781,3.19591,3129.0,3128.6,0.319]
[1731999885638,3.19607,3128.9,3128.6,0.319]
[1731999886638,3.19612,3128.8,3128.6,0.319]
[1731999887614,3.19642,3128.5,3128.4,0.319]
[1731999888468,3.19642,3128.5,3127.8,4.02001]
[1731999888469,3.19642,3128.5,3127.9,0.319]
[1731999888675,3.18777016,3128.5,3127.9,0.319]
[1731999889312,1.15073219,3128.8,3127.9,0.319]
[1731999889517,3.19653,3128.4,3127.9,0.319]
[1731999889815,3.19631,3128.6,3127.9,0.319]
[1731999890023,3.19631,3128.6,3127.9,3.51603]
[1731999890425,3.19595,3129.0,3128.3,0.8048]
[1731999890883,3.19577,3129.2,3128.4,3.19643]
[1731999891076,3.19563,3129.3,3128.4,3.19643]
[1731999891077,3.19597,3129.0,3128.4,3.596553]
[1731999891306,3.19597,3129.0,3128.4,38.596553]
[1731999892617,0.7542,3129.4,3128.4,35.400123]
[1731999892820,3.19619,3128.8,3128.4,35.0]
[1731999893028,0.7542,3129.4,3128.4,35.0]
[1731999893029,3.19632,3128.6,3128.4,35.0]
[1731999893325,3.19642,3128.5,3128.4,35.0]
[1731999894099,3.19669,3128.3,3127.6,4.02061]
[1731999894428,3.19669,3128.3,3127.7,0.721799]
[1731999894576,3.19669,3128.3,3127.8,35.0]
[1731999897220,3.19689,3128.1,3127.8,35.0]
[1731999898285,3.19703,3127.9,3127.8,35.0]
[1731999899288,3.19703,3127.9,3127.2,0.7666]
[1731999899526,3.19724,3127.7,3127.2,0.7666]
[1731999899732,3.19714,3127.8,3127.3,35.0]
[1731999900592,3.19686,3128.1,3127.3,35.0]
[1731999900825,3.19702,3128.0,3127.3,35.0]
[1731999901037,3.19702,3128.0,3127.3,38.19762]
[1731999901223,3.19702,3128.0,3127.3,38.14099947]
[1731999901224,3.19706,3127.9,3127.3,38.14099947]
[1731999902637,3.19714,3127.8,3127.3,38.14099947]
[1731999902835,3.19714,3127.8,3127.3,35.0]
[1731999903726,3.19725,3127.7,3127.3,35.0]
[1731999904542,0.8262,3128.3,3127.3,35.0]
[1731999904912,3.19699,3128.0,3127.3,35.0]
[1731999905245,3.19699,3128.0,3127.3,38.19758]
[1731999905454,3.19704,3127.9,3127.3,38.19758]
[1731999905807,3.19699,3128.0,3127.4,3.19747]
[1731999906499,3.19699,3128.0,3127.5,35.0]
[1731999907516,3.19715,3127.8,3127.5,35.0]
[1731999907750,3.516865,3127.8,3127.5,35.0]
[1731999907915,3.19725,3127.7,3127.5,35.0]
[1731999909542,3.19692,3128.1,3127.5,35.0]
[1731999910311,3.19697,3128.0,3127.6,0.319]
[1731999911001,3.19697,3128.0,3127.6,35.319]
[1731999911205,3.19716,3127.8,3127.6,35.319]
[1731999911633,3.19723,3127.7,3127.6,35.319]
[1731999913819,3.1974,3127.6,3127.3,0.319]
[1731999914264,3.1974,3127.6,3127.4,35.0]
[1731999914569,3.19744,3127.5,3127.4,35.0]
[1731999914716,0.7746,3127.5,3126.4,4.00855]
[1731999915067,3.97275,3126.9,3126.4,0.81]
[1731999915229,3.19818,3126.8,3126.5,35.0]
[1731999916029,3.19827,3126.7,3126.5,35.0]
[1731999916227,3.19826,3126.7,3126.5,35.0]
[1731999916433,3.19833,3126.7,3126.2,1.129]
[1731999916630,3.97266,3126.9,3126.2,1.129]
[1731999916832,3.97266,3126.9,3126.3,38.19866]
[1731999917267,3.97266,3126.9,3126.3,35.0]
[1731999917559,3.19816,3126.8,3126.3,35.0]
[1731999918070,0.7746,3126.9,3126.3,35.0]
[1731999918260,3.19816,3126.8,3126.3,35.0]
[1731999918420,0.7746,3126.9,3126.3,38.19865]
[1731999918867,0.7746,3126.9,3126.4,3.19855]
[1731999918868,0.01554098,3126.7,3126.4,3.19855]
[1731999920020,0.01554098,3126.7,3126.6,4.29836]
[1731999920463,0.01554098,3126.7,3126.6,39.29836]
[1731999921182,0.01554098,3126.7,3126.6,42.29836]
[1731999921469,0.01554098,3126.7,3126.6,45.43935947]
[1731999922472,0.01554098,3126.7,3126.6,48.5457693]
[1731999928031,0.01554098,3126.7,3126.6,45.43935947]
[1731999932340,0.01554098,3126.7,3126.6,48.5457693]
[1731999935341,0.818,3127.9,3126.8,0.7746]
[1731999935542,0.818,3127.9,3127.5,0.319]
[1731999935955,0.818,3127.9,3127.5,3.51643]
[1731999938379,0.8241,3128.2,3127.7,3.51623]
[1731999938760,0.8241,3128.2,3127.7,38.51623]
[1731999938956,0.8241,3128.2,3127.7,3.51623]
[1731999939171,3.19643,3128.5,3127.9,3.19696]
[1731999939172,0.7818,3128.5,3127.9,3.19696]
[1731999939485,0.7818,3128.8,3128.1,0.319]
[1731999939657,0.7818,3128.8,3128.1,3.5158]
[1731999939858,3.19629,3128.7,3128.1,0.319]
[1731999940044,3.19644,3128.5,3128.1,0.319]
[1731999940243,3.19663,3128.3,3128.1,0.319]
[1731999940450,3.19663,3128.3,3128.2,35.319]
[1731999940860,3.97834,3128.4,3128.2,35.319]
[1731999941891,0.7818,3128.4,3128.2,35.319]
[1731999942046,3.97804,3128.7,3128.2,35.319]
[1731999942904,0.8239,3128.9,3128.2,39.21109947]
[1731999943048,0.8239,3129.2,3128.5,3.51534]
[1731999943248,0.16645585,3129.5,3128.7,3.51512]
[1731999943249,4.0193,3129.5,3128.7,3.51512]
[1731999943596,4.0193,3129.5,3128.9,3.196]
[1731999944351,0.8239,3129.5,3129.0,3.19588]
[1731999945045,0.8239,3129.5,3128.9,0.319]
[1731999945046,3.36133313,3130.0,3129.1,4.30703]
[1731999945247,3.19499,3129.9,3129.1,0.7923]
[1731999945494,3.19527,3129.7,3129.1,0.7923]
[1731999945678,3.19529,3129.6,3129.1,0.7923]
[1731999945883,3.19541,3129.5,3129.2,35.0]
[1731999946199,3.514951,3129.5,3129.2,35.0]
[1731999947427,3.19551,3129.4,3129.2,35.0]
[1731999947991,3.1956,3129.3,3129.2,35.0]
[1731999948192,4.0125,3129.3,3129.2,35.0]
[1731999949033,4.0125,3129.3,3128.3,0.7572]
[1731999949034,0.8169,3129.3,3128.3,0.7572]
[1731999949230,3.19619,3128.8,3128.3,0.7572]
[1731999949395,3.19619,3128.8,3128.4,35.0]
[1731999949994,0.8239,3128.7,3128.4,35.0]
[1731999950195,4.02015,3128.7,3128.4,35.0]
[1731999950403,0.8239,3128.7,3128.4,35.0]
[1731999950801,3.19607,3128.9,3128.4,35.0]
[1731999950802,0.8239,3128.9,3128.4,35.0]
[1731999951212,0.8239,3128.9,3128.4,39.97182172]
[1731999951420,4.01962,3129.2,3128.5,3.19634]
[1731999951728,3.19586,3129.1,3128.5,3.94814]
[1731999952037,3.19596,3129.0,3128.5,0.7518]
[1731999952237,3.19601,3128.9,3128.4,35.0]
[1731999952530,3.19581,3129.1,3128.4,38.19649]
[1731999952943,3.19593,3129.0,3128.4,38.19649]
[1731999954921,4.01962,3129.2,3128.5,3.19642]
[1731999955328,3.19581,3129.1,3128.5,0.319]
[1731999955909,3.19581,3129.1,3128.7,0.319]
[1731999956105,3.19592,3129.0,3128.7,0.319]
[1731999956404,3.19611,3128.8,3128.7,0.319]
[1731999956807,3.19592,3129.0,3128.7,0.319]
[1731999957234,3.19601,3128.9,3128.7,0.319]
[1731999958451,3.19611,3128.8,3128.7,0.319]
[1731999958596,3.19601,3128.9,3128.7,0.319]
[1731999958938,3.19601,3128.9,3128.4,0.319]
[1731999959293,3.19601,3128.9,3128.5,35.319]
[1731999959902,3.19612,3128.8,3128.5,35.319]
[1731999961843,0.7933,3128.7,3128.5,35.319]
[1731999962004,0.7933,3128.7,3128.0,0.319]
[1731999962005,3.19663,3128.3,3128.0,0.319]
[1731999962201,3.1958,3129.1,3128.0,0.319]
[1731999962202,0.8033,3129.7,3128.1,0.8288]
[1731999962435,0.7933,3129.9,3129.3,6.62097983]
[1731999962695,0.65157237,3130.3,3129.4,4.35256299]
[1731999962842,0.8187,3130.2,3129.5,3.19529]
[1731999963197,0.8187,3130.2,3129.6,2.04840402]
[1731999963342,3.1946,3130.3,3129.8,0.7838]
[1731999963534,0.8187,3130.5,3129.8,0.7838]
[1731999963750,0.782,3129.8,3129.7,35.319]
[1731999963967,0.782,3129.8,3129.2,0.64422333]
[1731999963968,3.19521,3129.7,3129.2,0.319]
[1731999964136,0.782,3129.8,3129.2,0.319]
[1731999964581,3.9771,3129.8,3129.3,35.319]
[1731999965397,3.9771,3129.8,3129.3,35.0]
[1731999966835,1.14708519,3129.8,3129.3,35.0]
[1731999967074,3.19537,3129.6,3129.3,35.0]
[1731999967275,3.19535,3129.6,3129.3,35.0]
[1731999967487,3.97714,3129.8,3129.3,35.0]
[1731999967656,3.1952,3129.7,3129.3,35.0]
[1731999968080,0.782,3129.8,3129.3,35.0]
[1731999968284,3.19522,3129.7,3129.3,35.0]
[1731999968648,3.19529,3129.6,3129.3,35.0]
[1731999971017,3.19529,3129.6,3129.3,35.0]
[1731999971314,3.19553,3129.4,3128.8,0.8158]
[1731999971517,3.19553,3129.4,3128.8,4.01189]
[1731999971692,3.19553,3129.4,3128.9,35.0]
[1731999972600,3.1953,3129.6,3128.9,38.196]
[1731999972805,3.19541,3129.5,3128.9,38.196]
[1731999973764,3.19541,3129.5,3128.9,35.0]
[1731999973907,3.19551,3129.4,3128.9,35.0]
[1731999974109,0.55,3129.2,3128.7,0.6423835]
[1731999974454,0.8241,3128.8,3128.2,3.19671]
[1731999974649,4.02028,3128.8,3128.0,0.7616]
[1731999974875,4.02028,3128.8,3128.1,3.19679]
[1731999975209,4.02028,3128.8,3128.1,3.84082378]
[1731999975552,4.38621919,3128.8,3128.2,3.19672]
[1731999975753,4.38621919,3128.8,3128.1,0.64403378]
[1731999976049,3.19639,3128.6,3128.1,0.64403378]
[1731999976654,3.19641,3128.6,3128.1,0.64403378]
[1731999976850,3.515961,3128.6,3128.1,0.64403378]
[1731999977353,0.8271,3128.4,3127.6,0.7604]
[1731999977523,3.19662,3128.3,3127.6,0.7604]
[1731999978254,3.19689,3128.1,3127.6,0.7604]
[1731999978957,3.19662,3128.3,3127.6,3.95246263]
[1731999979155,3.19662,3128.3,3127.6,0.75519263]
[1731999979473,3.19674,3128.2,3127.6,0.75519263]
[1731999979909,3.19668,3128.3,3127.6,0.75519263]
[1731999980107,3.19674,3128.2,3127.6,0.75519263]
[1731999980324,3.19668,3128.3,3127.6,3.95252263]
[1731999980519,0.8131,3128.8,3128.1,3.19682]
[1731999980733,4.00922,3128.8,3128.1,3.19682]
[1731999981138,3.19621,3128.7,3127.9,3.197]
[1731999981340,3.19621,3128.7,3128.1,3.19682]
[1731999981741,3.19621,3128.7,3128.2,0.8093]
[1731999981954,0.8131,3128.8,3128.2,4.00599]
[1731999982168,3.95396,3129.1,3128.3,3.19659]
[1731999982312,3.19601,3128.9,3128.3,3.19659]
[1731999983330,3.19601,3128.9,3128.2,4.00599]
[1731999983833,3.19601,3128.9,3128.2,0.8093]
[1731999984138,3.19601,3128.9,3127.9,1.41509421]
[1731999984139,3.19662,3128.4,3127.9,1.41509421]
[1731999984343,3.515741,3128.8,3128.1,3.19682]
[1731999985119,3.19624,3128.7,3128.0,3.19689]
[1731999986657,3.515711,3128.8,3128.1,3.19673]
[1731999986859,3.19622,3128.7,3128.1,3.19673]
[1731999987233,3.515711,3128.8,3128.1,3.19673]
[1731999987457,0.36588919,3128.7,3128.2,3.19672]
[1731999988031,4.01292,3128.9,3128.3,0.8142]
[1731999988244,4.01292,3128.9,3128.3,4.01082]
[1731999988459,3.19602,3128.9,3128.3,4.01082]
[1731999991581,3.19601,3128.9,3128.3,0.8142]
[1731999992639,3.19601,3128.9,3128.3,4.01081]
[1731999996571,3.19591,3129.0,3128.4,3.1965]
[1731999997436,3.19582,3129.1,3128.5,3.1964]
[1731999997637,3.19582,3129.1,3128.3,4.01081]
[1731999997838,3.19582,3129.1,3128.4,3.19648]
[1731999998085,3.19582,3129.1,3128.5,3.1964]
[1731999998676,0.753,3129.2,3128.6,3.19624]
[1731999998981,3.1956,3129.3,3128.8,3.19611]
[1731999999175,7.14286,3129.5,3128.8,3.19611]
[1731999999485,3.19552,3129.4,3128.8,3.19611]
[1732000000199,3.19552,3129.4,3128.7,3.19619]
[1732000000402,3.19561,3129.3,3128.7,3.19619]
[1732000000902,3.94741,3129.5,3128.6,0.8258]
[1732000001110,3.19564,3129.3,3128.6,4.02206]
[1732000001253,3.19564,3129.3,3128.7,3.19619]
[1732000001451,3.94741,3129.5,3128.8,3.19608]
[1732000001756,0.752,3129.5,3129.1,0.7662]
[1732000001958,3.19522,3129.7,3129.1,3.96198]
[1732000002255,0.319522,3129.6,3129.1,3.96198]
[1732000002468,3.19503,3129.9,3129.3,3.19553]
[1732000003604,0.8036,3130.1,3129.1,0.7662]
[1732000003823,3.19535,3129.6,3129.1,0.7662]
[1732000005007,0.8036,3130.1,3129.1,0.7662]
[1732000005008,3.1954,3129.5,3129.1,0.7662]
[1732000005336,3.10640983,3129.6,3128.8,0.7539]
[1732000005537,6.391,3129.4,3128.5,0.7539]
[1732000005685,3.19607,3128.9,3128.5,0.7539]
[1732000006540,3.19619,3128.8,3128.5,0.7539]
[1732000007029,3.19626,3128.7,3128.5,0.7539]
[1732000008199,3.19626,3128.7,3128.1,0.8169]
[1732000008387,3.19657,3128.4,3128.1,0.8169]
[1732000009186,3.19661,3128.4,3128.1,0.8169]
[1732000009392,3.19662,3128.3,3127.7,0.7731]
[1732000009604,3.19661,3128.4,3127.7,3.7731]
[1732000009605,3.19674,3128.2,3127.7,3.7731]
[1732000009907,3.19661,3128.4,3127.7,6.97024]
[1732000010413,3.19642,3128.5,3127.9,3.19701]
[1732000010614,3.19642,3128.5,3127.7,7.987007]
[1732000010823,3.19642,3128.5,3127.7,11.184167]
[1732000011041,0.757,3128.9,3127.7,7.987007]
[1732000011042,3.19652,3128.4,3127.7,7.987007]
[1732000011399,3.19652,3128.4,3127.8,35.0]
[1732000011641,3.19652,3128.4,3127.8,38.19711]
[1732000012204,3.19644,3128.5,3127.9,3.19697]
[1732000012431,3.19633,3128.6,3128.0,3.19684]
[1732000012944,3.19633,3128.6,3128.1,35.0]
[1732000013753,3.19642,3128.5,3128.1,35.0]
[1732000016350,3.19633,3128.6,3128.1,35.0]
[1732000016649,3.19611,3128.8,3128.2,0.7689]
[1732000017043,3.19572,3129.2,3127.8,0.773]
[1732000017243,3.19572,3129.2,3128.4,0.773]
[1732000017244,3.19601,3128.9,3128.4,0.773]
[1732000017909,3.19612,3128.8,3128.4,0.773]
[1732000018110,3.19601,3128.9,3128.4,0.773]
[1732000018643,3.19621,3128.8,3128.4,0.773]
[1732000019025,3.19601,3128.9,3128.4,0.773]
[1732000019347,0.33384088,3128.7,3128.4,0.773]
[1732000019753,3.53005088,3128.7,3128.4,0.773]
[1732000019939,3.19632,3128.6,3128.4,0.773]
[1732000020143,3.54933609,3128.6,3128.4,0.773]
[1732000020638,0.35301609,3128.6,3128.4,0.773]
[1732000021343,0.33384088,3128.7,3128.4,0.773]
[1732000023067,3.53005088,3128.7,3128.4,0.773]
[1732000023732,0.33384088,3128.7,3128.4,0.773]
[1732000025474,0.33384088,3128.7,3128.5,0.3193]
[1732000026732,0.33384088,3128.7,3128.4,0.773]
[1732000027029,0.33384088,3128.7,3128.6,3.99671]
[1732000027273,0.33384088,3128.7,3128.6,4.31601]
[1732000028538,0.33384088,3128.7,3128.6,39.31601]
[1732000029198,0.33384088,3128.7,3128.6,36.1197]
[1732000031201,0.33384088,3128.7,3128.6,35.3193]
[1732000031492,3.53005088,3128.7,3128.6,35.0]
[1732000031701,0.33384088,3128.7,3128.6,35.0]
[1732000031858,3.53005088,3128.7,3128.6,35.0]
[1732000033497,3.53005088,3128.7,3128.3,0.3193]
[1732000033794,3.53005088,3128.7,3128.4,35.0]
[1732000033795,0.33384088,3128.7,3128.4,35.0]
[1732000035659,0.33384088,3128.7,3128.5,0.3193]
[1732000036168,0.33384088,3128.7,3128.4,35.0]
[1732000036169,3.19642,3128.5,3128.4,35.0]
[1732000036383,3.19642,3128.5,3128.2,1.077]
[1732000036760,1.15574088,3128.7,3128.2,0.3193]
[1732000036761,3.19654,3128.4,3128.2,0.3193]
[1732000037094,3.19654,3128.4,3128.3,35.0]
[1732000037257,3.1964,3128.6,3128.3,35.0]
[1732000037463,3.1964,3128.6,3128.1,0.3193]
[1732000037886,3.19652,3128.4,3128.1,35.3193]
[1732000038703,0.33383526,3128.3,3128.1,35.3193]
[1732000039113,3.53046526,3128.3,3128.1,35.3193]
[1732000040509,3.53046526,3128.3,3128.1,35.0]
[1732000041448,3.53046526,3128.3,3127.8,0.3193]
[1732000041646,3.1969,3128.1,3127.4,3.19747]
[1732000041813,3.1969,3128.1,3127.4,0.3193]
[1732000042138,3.19704,3127.9,3127.5,35.0]
[1732000042710,3.1969,3128.1,3127.5,35.0]
[1732000042915,6.39379,3128.1,3127.5,35.0]
[1732000043228,3.19699,3128.0,3127.5,35.0]
[1732000044298,0.33383526,3128.3,3127.6,0.7579]
[1732000044606,0.33383526,3128.3,3127.7,3.19722]
[1732000044807,3.53053526,3128.3,3127.6,0.7579]
[1732000045192,0.33383526,3128.3,3127.8,35.0]
[1732000045339,3.19683,3128.1,3127.8,35.0]
[1732000046313,3.19719,3127.8,3127.1,6.51706]
[1732000046513,3.97143,3127.9,3127.1,0.3193]
[1732000046514,3.1973,3127.7,3127.1,0.3193]
[1732000046727,3.1973,3127.7,3127.2,35.0]
[1732000047249,3.19735,3127.6,3127.2,35.0]
[1732000047607,3.19735,3127.6,3127.1,0.3193]
[1732000047803,3.19772,3127.3,3126.8,0.81381101]
[1732000048534,4.01254,3127.4,3126.8,0.81381101]
[1732000048535,3.19775,3127.2,3126.8,0.81381101]
[1732000049133,3.19775,3127.2,3126.9,35.0]
[1732000049336,3.19783,3127.2,3126.9,35.0]
[1732000049545,3.19764,3127.3,3126.9,35.0]
[1732000049756,3.19776,3127.2,3126.8,0.81381101]
[1732000050456,3.19764,3127.3,3126.8,35.81381101]
[1732000051265,3.19775,3127.2,3126.8,35.00281101]
[1732000052453,3.19787,3127.1,3126.8,35.00281101]
[1732000053226,3.19787,3127.1,3126.8,0.00281101]
[1732000053428,3.19805,3127.0,3126.8,0.00281101]
[1732000053625,4.00895,3126.9,3126.8,0.00281101]
[1732000054022,3.19833,3126.7,3126.2,0.7775]
[1732000054225,3.1985,3126.5,3126.0,0.7775]
[1732000054418,0.8109,3126.9,3126.0,0.7775]
[1732000054419,3.19858,3126.4,3126.0,0.7775]
[1732000054666,3.19815,3126.8,3126.0,0.7775]
[1732000054866,3.19859,3126.4,3126.0,0.7775]
[1732000055171,4.00949,3126.4,3126.1,35.0]
[1732000055551,3.19877,3126.2,3125.4,0.7775]
[1732000055719,3.1991,3125.9,3125.4,0.7775]
[1732000056074,4.01,3125.9,3125.5,35.0]
[1732000057055,0.8109,3125.9,3125.5,35.0]
[1732000057379,3.19938,3125.6,3125.5,35.0]
[1732000057527,0.8109,3125.9,3124.9,3.97751]
[1732000057723,0.8109,3125.9,3124.9,4.375261]
[1732000058049,0.8109,3125.9,3125.0,35.0]
[1732000058364,0.8109,3125.9,3125.0,38.19998]
[1732000058365,3.19918,3125.8,3125.0,38.19998]
[1732000058570,0.8109,3125.9,3125.4,3.19957]
[1732000058726,3.19881,3126.2,3125.6,3.19938]
[1732000058922,3.19868,3126.3,3125.6,3.19938]
[1732000059554,0.8109,3126.6,3125.9,0.7775]
[1732000059756,0.8109,3126.9,3126.0,3.19897]
[1732000060067,3.19826,3126.7,3126.0,3.19897]
[1732000060649,3.19826,3126.7,3125.9,0.7775]
[1732000060849,3.19826,3126.7,3126.0,38.19897]
[1732000061047,3.19826,3126.7,3126.0,41.33996947]
[1732000062603,4.00896,3126.9,3126.1,3.19887]
[1732000062887,0.33381088,3127.0,3126.1,3.19887]
[1732000062888,0.33381088,3127.0,3126.5,3.19839]
[1732000063096,0.33381088,3127.0,3126.2,3.98745]
[1732000063275,0.33381088,3127.0,3126.3,3.597345]
[1732000063476,3.53184088,3127.0,3126.3,3.597345]
[1732000063909,3.19808,3126.9,3126.3,3.1986]
[1732000064086,3.19816,3126.8,3126.2,0.7887]
[1732000064487,0.33381088,3127.0,3126.4,3.19849]
[1732000064686,0.33381088,3127.0,3126.4,3.917083]
[1732000064886,3.53177088,3127.0,3126.2,3.98744]
[1732000065215,3.19812,3126.9,3126.2,3.98744]
[1732000065495,3.19812,3126.9,3126.3,0.3193]
[1732000065696,3.53177088,3127.0,3126.3,0.3193]
[1732000066911,0.33381088,3127.0,3126.3,0.3193]
[1732000067065,0.33381088,3127.0,3126.5,3.19846]
[1732000067399,0.33381088,3127.0,3126.3,3.51792]
[1732000067927,3.1982,3126.8,3126.3,0.3193]
[1732000068225,3.19826,3126.7,3126.3,0.3193]
[1732000068410,3.95126,3126.7,3126.3,0.3193]
[1732000068805,3.19826,3126.7,3126.3,0.3193]
[1732000069123,0.33377856,3126.6,3126.3,0.3193]
[1732000069331,3.53222856,3126.6,3126.3,0.3193]
[1732000069500,4.68941766,3126.6,3126.0,0.3193]
[1732000070184,1.49096766,3126.6,3126.1,3.51815]
[1732000070383,1.15867856,3126.6,3126.1,3.51815]
[1732000070620,1.15867856,3126.6,3126.2,3.19872]
[1732000070621,0.33377856,3126.6,3126.2,3.19872]
[1732000070931,0.33377856,3126.6,3126.2,3.19874]
[1732000071292,0.33377856,3126.6,3126.2,3.19875]
[1732000072589,0.33377856,3126.6,3126.0,3.51827]
[1732000072785,0.33377856,3126.6,3126.0,3.5182]
[1732000073235,0.33377856,3126.6,3126.1,35.3193]
[1732000073393,0.33377856,3126.6,3126.1,35.0]
[1732000073589,0.33377856,3126.6,3126.5,3.19846]
[1732000073804,0.33377856,3126.6,3126.5,0.8186]
[1732000075740,0.33377856,3126.6,3126.5,4.01706]
[1732000076680,0.33377856,3126.6,3126.5,4.33636]
[1732000076821,0.33377856,3126.6,3126.5,4.01706]
[1732000077659,0.33377856,3126.6,3126.5,4.738632]
[1732000078660,0.33377856,3126.6,3126.5,5.057932]
[1732000079116,0.33377856,3126.6,3126.5,40.057932]
[1732000082226,0.33377856,3126.6,3126.5,5.057932]
[1732000082935,0.33377856,3126.6,3126.5,46.16434183]
[1732000083325,0.761,3127.7,3127.2,3.19766]
[1732000083730,0.7297,3127.7,3127.3,0.7868]
[1732000083955,0.333663,3127.6,3127.3,0.7868]
[1732000084227,0.333663,3127.6,3127.3,3.98444]
[1732000084773,0.333663,3127.6,3127.4,3.19753]
[1732000085307,0.333663,3127.6,3127.5,3.19744]
[1732000085926,0.333663,3127.6,3127.5,3.83738476]
[1732000086353,0.333663,3127.6,3127.5,38.83738476]
[1732000087954,0.333663,3127.6,3127.5,39.64478476]
[1732000089375,0.333663,3127.6,3127.5,4.96408476]
[1732000089554,0.8223,3128.6,3128.1,3.98018]
[1732000089880,4.01844,3128.8,3128.2,3.19672]
[1732000090076,3.515824,3128.7,3128.1,0.7834]
[1732000090227,3.19648,3128.5,3128.2,0.3193]
[1732000090739,3.515824,3128.7,3128.2,0.3193]
[1732000091045,3.19648,3128.5,3128.2,0.3193]
[1732000091461,3.515824,3128.7,3128.2,0.3193]
[1732000091634,3.19658,3128.4,3128.1,0.3193]
[1732000091836,3.56227619,3128.6,3128.1,0.3193]
[1732000092169,3.19642,3128.5,3128.1,0.3193]
[1732000092680,3.1967,3128.3,3127.7,3.8053]
[1732000093267,3.1967,3128.3,3127.8,35.0]
[1732000093772,3.19673,3128.2,3127.8,35.0]
[1732000096698,3.96802,3128.4,3127.8,35.0]
[1732000096699,3.19683,3128.1,3127.8,35.0]
[1732000096892,3.19683,3128.1,3127.6,0.3193]
[1732000097392,3.19683,3128.1,3127.7,35.0]
[1732000097590,3.19711,3127.9,3127.2,3.19772]
[1732000097740,0.8165,3128.0,3127.2,3.51702]
[1732000097983,3.19713,3127.8,3127.3,35.0]
[1732000099982,3.19731,3127.7,3127.3,35.0]
[1732000100185,0.7732,3127.4,3127.3,35.0]
[1732000100480,0.7732,3127.4,3127.3,35.3193]
[1732000101141,3.97074,3127.4,3127.3,35.3193]
[1732000101441,3.19768,3127.3,3126.7,0.3193]
[1732000101648,3.19775,3127.2,3126.7,0.3193]
[1732000101847,3.19793,3127.1,3126.8,35.3193]
[1732000102893,0.8332,3126.9,3126.8,35.3193]
[1732000103136,0.8332,3126.9,3126.5,0.3193]
[1732000103647,0.8332,3126.9,3126.6,35.3193]
[1732000103843,4.03126,3126.9,3126.6,35.3193]
[1732000104263,3.19821,3126.8,3126.6,35.3193]
[1732000104466,3.19826,3126.7,3126.6,35.3193]
[1732000104954,3.53203922,3126.7,3126.6,35.3193]
[1732000105251,3.19838,3126.6,3126.1,3.0]